bitfinex-derivatives/quotes_ETHF0:USTF0_20260201
["timestamp","ask_amount","ask_price","bid_price","bid_amount"]
[1769909558206,0.20469,2445.5,2444.1,1.46222211]
[1769909559610,0.20469,2445.5,2444.3,1.2777509]
[1769909561012,1.28032694,2445.6,2444.3,1.2777509]
[1769909561606,0.20921738,2445.6,2444.3,1.2777509]
[1769909563509,0.20472,2445.2,2444.3,1.2777509]
[1769909563710,0.20472,2445.2,2444.3,3.6777509]
[1769909564515,0.20472,2445.2,2444.4,1.34579708]
[1769909565114,0.20473,2445.0,2444.4,1.34579708]
[1769909565313,0.20473,2445.0,2444.3,2.4]
[1769909565909,0.20473,2445.0,2444.3,3.74579708]
[1769909566513,1.57242222,2445.5,2444.4,1.34579708]
[1769909566720,0.2047,2445.4,2444.4,1.34579708]
[1769909571324,0.2047,2445.4,2444.6,1.34579708]
[1769909572019,0.2047,2445.4,2444.7,1.34579708]
[1769909573215,0.20472,2445.2,2444.6,1.34579708]
[1769909573517,0.00453738,2445.6,2444.5,4.9816954]
[1769909573518,1.3722696,2445.6,2444.5,4.9816954]
[1769909573720,1.3722696,2445.6,2444.4,4.83045969]
[1769909573721,1.57246222,2445.1,2444.4,3.63589832]
[1769909573916,0.20473,2445.1,2444.5,4.03485374]
[1769909574122,0.20473,2445.1,2444.3,12.1046954]
[1769909574317,0.20473,2445.1,2444.4,9.01657905]
[1769909574622,0.20473,2445.1,2444.5,4.03488365]
[1769909574822,0.00453738,2445.6,2444.5,1.34579708]
[1769909575021,0.00453738,2445.6,2444.4,3.63589832]
[1769909575022,0.00453738,2445.6,2444.7,1.34579708]
[1769909575418,1.3722696,2445.6,2444.7,1.34579708]
[1769909576123,1.3722696,2445.6,2444.5,4.9816954]
[1769909576329,0.20472,2445.1,2444.6,4.03687383]
[1769909576524,0.20472,2445.1,2444.5,3.63589832]
[1769909576726,0.20472,2445.1,2444.6,4.0386757]
[1769909576925,0.20472,2445.1,2444.5,4.9816954]
[1769909577224,0.20472,2445.1,2444.6,5.3844744]
[1769909577425,0.20472,2445.1,2444.6,1.34579708]
[1769909578625,0.20472,2445.1,2444.7,4.0934172]
[1769909578827,0.20472,2445.1,2444.5,3.63589832]
[1769909579027,0.20472,2445.1,2444.6,4.09341633]
[1769909579232,0.20472,2445.1,2444.7,4.09341633]
[1769909579426,0.20472,2445.1,2444.5,3.63589832]
[1769909579624,0.20472,2445.1,2444.6,5.43939062]
[1769909579829,0.20472,2445.1,2444.6,1.34579708]
[1769909581132,1.57246222,2445.0,2444.5,3.63589832]
[1769909581328,0.00453738,2445.6,2444.4,3.63589832]
[1769909581329,1.57247222,2444.9,2444.4,3.63589832]
[1769909581522,1.57247222,2444.9,2444.3,3.63589832]
[1769909581723,1.57247222,2444.9,2444.4,4.01477334]
[1769909581931,1.57247222,2444.9,2444.3,3.63589832]
[1769909582127,0.20477,2444.6,2444.2,3.63589832]
[1769909582343,0.20477,2444.6,2444.1,4.98547051]
[1769909582832,0.20477,2444.6,2444.1,1.34957219]
[1769909583529,0.20479,2444.4,2444.1,0.00377511]
[1769909583727,1.36773222,2444.5,2443.9,7.135]
[1769909583728,0.20479,2444.3,2443.9,7.135]
[1769909584729,0.20479,2444.3,2443.9,7.14002038]
[1769909584924,0.20479,2444.3,2443.9,0.00502038]
[1769909585233,0.20471,2445.3,2444.2,1.34579708]
[1769909585433,0.20471,2445.3,2444.3,1.34579708]
[1769909585630,0.00453738,2445.6,2444.4,1.34579708]
[1769909585831,0.00453738,2445.6,2444.5,4.9816954]
[1769909586035,0.00453738,2445.6,2444.7,1.34579708]
[1769909586433,0.20466,2445.8,2444.8,1.34579708]
[1769909587231,0.20461,2446.4,2444.9,1.41200865]
[1769909587437,0.20979495,2446.4,2445.4,1.41200865]
[1769909587631,0.20457,2446.9,2445.7,1.41200865]
[1769909587938,0.20457,2446.9,2445.9,1.41200865]
[1769909588735,0.20915085,2446.9,2445.9,1.41635673]
[1769909589135,1.68879134,2446.2,2445.9,8.08e-06]
[1769909589332,0.20463,2446.2,2445.4,1.41200865]
[1769909589538,1.68881134,2446.0,2445.1,1.41200865]
[1769909590238,1.48416134,2446.0,2445.1,1.41685893]
[1769909591135,0.20467,2445.8,2445.1,1.41685893]
[1769909594342,0.20469,2445.5,2444.8,3.81200865]
[1769909595243,0.20469,2445.5,2444.9,1.41200865]
[1769909595445,0.20469,2445.5,2444.9,1.41509473]
[1769909595644,1.48416134,2446.1,2444.9,1.41509473]
[1769909597147,0.20469,2445.5,2444.9,1.41509473]
[1769909597348,1.48416134,2446.1,2444.9,1.41509473]
[1769909597742,1.48416134,2445.2,2444.9,0.00308608]
[1769909597947,0.20471,2445.3,2444.4,1.41200865]
[1769909598543,1.68882134,2445.9,2444.4,1.41200865]
[1769909598743,0.20466,2445.9,2444.4,1.41200865]
[1769909598943,0.20466,2445.9,2444.5,1.41200865]
[1769909600249,0.20467,2445.8,2444.5,1.41200865]
[1769909600449,0.20468,2445.6,2444.5,1.41200865]
[1769909601549,0.20471,2445.3,2444.5,1.41200865]
[1769909602049,1.48416134,2445.7,2444.5,1.41200865]
[1769909603142,0.20471,2445.2,2444.5,1.41200865]
[1769909603739,1.48416134,2445.5,2444.5,1.41200865]
[1769909603944,1.68890134,2444.9,2444.4,0.00461975]
[1769909604248,1.48761193,2444.9,2444.4,9.75e-06]
[1769909604939,0.00345059,2444.9,2444.4,9.75e-06]
[1769909605141,1.48416134,2445.5,2444.4,1.4120184]
[1769909606149,0.20472,2445.1,2444.4,1.4120184]
[1769909607042,1.48416134,2445.3,2444.4,1.4120184]
[1769909607243,0.20475,2444.8,2444.4,9.75e-06]
[1769909608755,0.20476,2444.7,2444.4,9.75e-06]
[1769909608949,0.20476,2444.7,2444.3,1.72262601]
[1769909609853,1.48416134,2444.9,2444.3,1.72558405]
[1769909609854,0.20477,2444.6,2444.3,1.72558405]
[1769909610254,0.20477,2444.5,2444.3,0.87082405]
[1769909610452,0.20477,2444.5,2444.3,0.42932405]
[1769909610652,0.20477,2444.5,2444.3,0.00862405]
[1769909613651,0.20477,2444.5,2444.3,4.05e-06]
[1769909616249,0.20478,2444.4,2444.3,4.05e-06]
[1769909616554,1.68894134,2444.4,2444.3,4.05e-06]
[1769909617248,0.20482,2444.0,2443.5,1.41200865]
[1769909617963,0.20483,2443.8,2443.2,5.19904792]
[1769909618161,0.20483,2443.8,2443.3,1.51504792]
[1769909618456,0.20481,2444.1,2443.3,1.51504792]
[1769909618759,1.89419151,2444.3,2443.3,1.51504792]
[1769909620257,0.20483,2443.8,2443.3,1.51504792]
[1769909620753,1.5408495,2443.9,2443.2,0.00459223]
[1769909621153,0.20487,2443.3,2443.2,2.23e-06]
[1769909622062,0.20825694,2443.3,2443.2,2.23e-06]
[1769909622561,1.8035162,2443.3,2443.2,2.23e-06]
[1769909625148,0.20825694,2443.3,2443.2,2.23e-06]
[1769909625550,0.20483,2443.8,2443.2,1.47853867]
[1769909625854,0.20487,2443.3,2443.2,2.23e-06]
[1769909626458,0.20844647,2443.3,2443.2,2.23e-06]
[1769909626860,1.80370573,2443.3,2443.2,2.23e-06]
[1769909628359,0.20844647,2443.3,2443.2,2.23e-06]
[1769909629160,1.80370573,2443.3,2443.2,2.23e-06]
[1769909631462,0.20844647,2443.3,2443.2,2.23e-06]
[1769909632062,1.59525926,2443.6,2442.3,1.47853644]
[1769909632258,0.20487,2443.3,2442.3,1.47853644]
[1769909632974,0.20826691,2443.3,2442.3,1.48232322]
[1769909633371,1.59525926,2443.9,2442.4,1.47853644]
[1769909633575,1.59525926,2444.2,2442.7,1.47853644]
[1769909633777,1.59525926,2444.2,2442.8,1.47853644]
[1769909633978,0.20481,2444.1,2443.0,1.47853644]
[1769909634277,1.59525926,2444.8,2443.2,1.47853644]
[1769909634476,0.00513816,2444.1,2443.3,1.47853644]
[1769909636473,1.59525926,2444.0,2443.2,3.686]
[1769909637674,1.59525926,2444.0,2443.2,5.16453644]
[1769909638266,0.20484,2443.7,2443.2,3.686]
[1769909638471,0.20485,2443.6,2443.2,3.20987306]
[1769909639876,1.80011926,2443.5,2443.2,3.20987306]
[1769909640079,0.20486,2443.5,2443.2,3.20987306]
[1769909640278,1.80011926,2443.5,2443.2,3.20987306]
[1769909640870,0.00513816,2444.1,2443.3,1.47853644]
[1769909641678,0.20478,2444.4,2443.3,1.47853644]
[1769909641873,0.20478,2444.4,2443.3,3.91446907]
[1769909642078,0.20478,2444.4,2443.4,1.47853644]
[1769909642279,0.20479,2444.3,2443.4,1.47853644]
[1769909642475,0.20479,2444.3,2443.5,1.47853644]
[1769909642779,0.20908735,2444.3,2443.5,1.47853644]
[1769909642977,1.95016012,2444.8,2443.5,1.47853644]
[1769909644078,0.20479,2444.3,2443.5,1.47853644]
[1769909644284,1.95438493,2444.8,2443.6,1.47853644]
[1769909644479,0.20897481,2444.8,2443.8,1.47853644]
[1769909644676,0.20476,2444.7,2444.0,1.47853644]
[1769909644984,0.20476,2444.7,2443.9,1.47853644]
[1769909646478,0.00422481,2444.8,2443.9,1.47853644]
[1769909646679,0.20471,2445.2,2444.1,1.47853644]
[1769909647477,0.20471,2445.2,2444.2,1.47536547]
[1769909647776,0.2091815,2445.2,2444.2,1.47881381]
[1769909650782,0.2091815,2445.2,2444.3,1.47536547]
[1769909650982,1.59525926,2445.4,2444.3,1.47536547]
[1769909651282,1.94148055,2445.4,2444.3,1.47536547]
[1769909651879,1.94631488,2445.4,2444.3,1.47536547]
[1769909652186,0.20472,2445.2,2444.3,1.47536547]
[1769909652385,0.00483433,2445.4,2444.3,1.47536547]
[1769909653178,0.20466,2445.8,2444.5,1.47536547]
[1769909653382,0.20466,2445.8,2444.7,1.47536547]
[1769909654179,0.2093588,2445.8,2444.7,1.47536547]
[1769909657689,1.47770876,2445.2,2444.4,5.31236547]
[1769909657885,1.47770876,2445.2,2444.4,1.47536547]
[1769909658485,1.68242876,2445.2,2444.4,1.47536547]
[1769909660287,0.20472,2445.2,2444.4,1.47536547]
[1769909660492,1.68237876,2445.7,2444.4,1.47536547]
[1769909660991,0.20468,2445.6,2444.4,1.47536547]
[1769909661691,0.20468,2445.6,2444.5,1.47536547]
[1769909662092,0.0046988,2445.8,2444.8,1.47536547]
[1769909662394,0.0046988,2445.8,2445.0,1.47536547]
[1769909662688,1.47770876,2446.7,2445.2,1.47536547]
[1769909663083,1.47770876,2446.1,2445.0,2.43593263]
[1769909663283,1.68236876,2445.9,2445.1,1.47536547]
[1769909663590,1.48222641,2445.9,2445.1,1.47536547]
[1769909663784,1.68688641,2445.9,2445.1,1.47536547]
[1769909663994,0.20464,2445.7,2444.9,5.437]
[1769909664290,1.88701876,2445.8,2444.9,6.91236547]
[1769909664694,0.20464,2445.6,2444.9,5.437]
[1769909664895,1.88702876,2445.6,2444.9,5.437]
[1769909665090,0.20464,2445.5,2444.9,5.437]
[1769909665492,0.20464,2445.4,2444.9,6.91236547]
[1769909665692,0.20464,2445.5,2444.9,6.91236547]
[1769909666092,0.20464,2445.4,2444.9,6.91236547]
[1769909666293,0.20468,2445.6,2445.0,1.47536547]
[1769909668699,1.48222641,2445.9,2445.0,1.47536547]
[1769909668889,0.20464,2445.8,2445.0,1.47536547]
[1769909669094,1.68234876,2445.5,2444.9,7.0]
[1769909669288,1.47770876,2445.5,2444.9,7.0]
[1769909669494,1.68234876,2445.2,2444.9,6.15839321]
[1769909669694,1.47770876,2445.2,2444.9,6.15839321]
[1769909669894,0.20464,2445.1,2444.9,6.15839321]
[1769909670397,0.20464,2445.0,2444.9,6.15839321]
[1769909670597,1.68241876,2445.3,2444.9,5.90066751]
[1769909670797,1.68234876,2445.0,2444.9,5.90066751]
[1769909670998,0.20464,2445.0,2444.9,5.90066751]
[1769909672797,0.20464,2445.0,2444.5,12.52363259]
[1769909672999,1.68241876,2445.3,2444.5,12.52363259]
[1769909673196,0.20464,2445.2,2444.5,14.95956522]
[1769909673396,0.20464,2445.2,2444.5,10.9182981]
[1769909673596,0.20464,2445.1,2444.5,10.9182981]
[1769909673799,0.20464,2445.2,2444.5,10.9182981]
[1769909673998,0.20464,2445.1,2444.5,10.9182981]
[1769909674303,0.20464,2445.2,2444.6,4.04594938]
[1769909674503,0.20464,2445.2,2444.5,10.9182981]
[1769909674702,0.20464,2445.1,2444.6,4.04615197]
[1769909674904,0.20464,2445.2,2444.5,10.9292981]
[1769909675104,0.20464,2445.2,2444.6,4.04615219]
[1769909675299,1.68241876,2445.3,2444.6,2.43593263]
[1769909675300,0.20464,2445.1,2444.6,2.43593263]
[1769909675705,0.20464,2445.0,2444.6,2.43593263]
[1769909675905,1.47770876,2444.9,2444.5,9.45393263]
[1769909676204,1.68234876,2444.9,2444.5,7.018]
[1769909676500,0.20464,2444.8,2444.5,7.018]
[1769909676705,0.20473,2445.0,2444.5,7.018]
[1769909677007,1.61947501,2445.0,2444.5,7.018]
[1769909677204,0.20473,2445.0,2444.5,7.018]
[1769909677406,0.20473,2445.0,2444.5,9.45393263]
[1769909677605,1.41474501,2445.3,2444.6,1.36758212]
[1769909678003,1.41474501,2445.3,2444.5,9.45393263]
[1769909679205,0.20473,2445.0,2444.5,9.45393263]
[1769909680003,0.20473,2445.0,2444.5,10.82151475]
[1769909680405,0.20473,2445.0,2444.5,8.38558212]
[1769909683116,0.20473,2445.0,2444.5,7.018]
[1769909683410,1.60457999,2445.0,2444.5,7.018]
[1769909683711,0.20473,2445.0,2444.5,8.40363639]
[1769909684013,0.2047,2445.4,2444.6,1.38563639]
[1769909684910,0.20471,2445.3,2444.6,1.38563639]
[1769909687413,0.20471,2445.3,2444.8,1.38563639]
[1769909687811,1.60450999,2445.8,2444.9,1.38563639]
[1769909688012,0.20466,2445.8,2444.9,1.38563639]
[1769909688213,0.20466,2445.8,2445.1,1.38563639]
[1769909688518,0.20466,2445.8,2445.2,8.44963639]
[1769909689316,0.00451765,2445.9,2445.3,1.38563639]
[1769909691806,0.20463,2446.2,2445.3,1.38563639]
[1769909692006,0.20463,2446.2,2445.4,1.38563639]
[1769909693018,0.20798391,2446.2,2445.4,1.38563639]
[1769909697517,1.39984999,2446.8,2445.5,1.38563639]
[1769909697722,1.39984999,2446.8,2445.6,1.38563639]
[1769909697918,0.20459,2446.7,2445.6,1.38563639]
[1769909698124,1.39984999,2447.1,2445.8,1.38563639]
[1769909698324,1.39984999,2447.1,2446.0,1.38563639]
[1769909698522,1.40292518,2447.1,2446.0,1.38871365]
[1769909698722,0.00307519,2447.1,2446.2,1.38563639]
[1769909698919,1.60747518,2447.1,2446.2,1.38563639]
[1769909700530,0.20762519,2447.1,2446.2,1.38563639]
[1769909700733,0.00307519,2447.1,2446.2,1.38563639]
[1769909700931,1.39984999,2447.5,2446.3,1.38563639]
[1769909701127,0.20451,2447.6,2446.4,1.38563639]
[1769909701324,0.20452,2447.5,2446.5,1.38563639]
[1769909701626,1.39984999,2447.4,2446.5,1.38563639]
[1769909701827,1.60441999,2447.0,2446.1,5.06863639]
[1769909702028,0.20457,2447.0,2446.2,1.38563639]
[1769909702228,1.60441999,2447.0,2446.2,1.38563639]
[1769909703226,1.60441999,2446.9,2446.0,0.00307726]
[1769909703432,1.39984999,2446.7,2446.0,0.00307726]
[1769909704735,1.39984999,2446.3,2445.4,5.06763639]
[1769909704931,1.39984999,2446.3,2445.5,3.448]
[1769909705629,1.39984999,2446.3,2445.5,3.45223328]
[1769909705826,1.39984999,2446.3,2445.5,4.83786967]
[1769909708632,1.39984999,2446.3,2445.6,1.33095079]
[1769909710134,0.20457,2446.9,2445.6,1.33095079]
[1769909710339,0.20457,2446.9,2445.9,1.33095079]
[1769909710542,0.20457,2446.9,2446.0,1.33095079]
[1769909711237,0.20457,2446.9,2446.1,1.33095079]
[1769909711441,1.29821185,2447.3,2446.1,1.33095079]
[1769909711637,0.20881407,2447.4,2446.3,1.33095079]
[1769909711837,0.20881407,2447.4,2446.5,1.33095079]
[1769909712741,0.00428407,2447.4,2446.5,3.76688342]
[1769909712938,1.50272185,2447.7,2446.6,1.33095079]
[1769909713139,1.29821185,2447.7,2446.7,8.991]
[1769909713736,1.29821185,2447.7,2446.7,10.32195079]
[1769909714043,1.30274033,2447.7,2446.7,10.32195079]
[1769909714237,1.50272185,2447.6,2446.7,10.32195079]
[1769909714438,1.29821185,2447.1,2446.3,2.43593263]
[1769909714736,1.29821185,2447.1,2446.3,7.056]
[1769909715135,1.29821185,2447.1,2446.3,8.38695079]
[1769909715335,1.29821185,2447.1,2446.3,15.1706936]
[1769909715943,1.29821185,2447.1,2446.3,10.82288342]
[1769909716138,0.20453,2447.5,2446.5,1.33095079]
[1769909716332,0.20453,2447.5,2446.7,1.33095079]
[1769909716539,1.29821185,2447.3,2446.6,4.34781018]
[1769909716744,1.29821185,2447.3,2446.5,6.78374281]
[1769909716943,1.29821185,2447.3,2446.7,7.061]
[1769909717139,1.50277185,2447.1,2446.4,6.78374281]
[1769909717339,1.29821185,2446.8,2446.3,3.682]
[1769909717545,1.29821185,2446.8,2446.3,10.744]
[1769909718143,0.20457,2446.9,2446.3,12.07495079]
[1769909719047,1.29821185,2447.1,2446.4,5.70548392]
[1769909719343,1.29821185,2447.4,2446.4,2.43593263]
[1769909719543,1.29821185,2447.4,2446.3,10.744]
[1769909719839,1.29821185,2446.9,2446.3,10.744]
[1769909720242,1.29821185,2446.7,2445.8,1.88975594]
[1769909720447,1.29821185,2446.0,2445.5,0.00423328]
[1769909720843,0.20464,2446.1,2445.6,4.0872]
[1769909721042,0.20461,2446.4,2445.8,4.0872]
[1769909721243,1.50282185,2446.4,2445.5,0.00423328]
[1769909721442,1.50282185,2446.4,2445.5,4.29035531]
[1769909722748,1.29821185,2446.2,2445.5,4.29035531]
[1769909722949,1.29821185,2446.2,2445.5,0.00423328]
[1769909724145,0.20464,2446.1,2445.5,0.00423328]
[1769909724548,0.20464,2446.1,2445.5,4.09143328]
[1769909725447,0.20464,2446.1,2445.7,4.0872]
[1769909725641,1.29821185,2446.5,2445.7,5.41815079]
[1769909725948,1.50282185,2446.4,2445.5,0.00423328]
[1769909726144,1.29821185,2446.4,2445.5,0.00423328]
[1769909726351,1.50285185,2446.1,2445.5,0.00423328]
[1769909726549,1.50287185,2445.9,2445.5,0.00423328]
[1769909726746,1.50287185,2445.9,2445.2,11.33716865]
[1769909726952,1.50287185,2445.9,2445.4,4.0872]
[1769909727253,1.50288185,2445.8,2445.3,4.0872]
[1769909727445,1.50288185,2445.8,2445.2,11.33716865]
[1769909727645,1.50593008,2445.8,2445.4,4.0872]
[1769909728050,1.50593008,2445.8,2445.5,4.0872]
[1769909728352,1.50593008,2445.8,2445.4,4.0872]
[1769909728852,1.50593008,2445.8,2445.5,4.0872]
[1769909729045,1.50593008,2445.8,2445.4,4.0872]
[1769909729442,1.50593008,2445.8,2445.2,7.07334452]
[1769909729645,1.50288185,2445.7,2445.2,7.07334452]
[1769909729847,0.20467,2445.7,2445.3,4.0872]
[1769909730151,1.50288185,2445.7,2445.3,4.0872]
[1769909731152,1.50288185,2445.7,2445.4,4.0872]
[1769909731454,1.50288185,2445.7,2445.3,4.0872]
[1769909731856,1.50288185,2445.7,2445.4,4.0872]
[1769909732056,1.50288185,2445.7,2445.3,4.0872]
[1769909732457,1.50288185,2445.7,2445.4,4.0872]
[1769909732651,1.50288185,2445.7,2445.3,4.0872]
[1769909733153,1.50288185,2445.7,2445.4,4.0872]
[1769909733350,1.50288185,2445.7,2445.3,4.0872]
[1769909733849,1.50288185,2445.7,2445.4,4.0872]
[1769909734049,1.50288185,2445.7,2445.3,4.0872]
[1769909734450,1.50288185,2445.7,2445.4,4.0872]
[1769909734658,1.50288185,2445.7,2445.3,4.0872]
[1769909735054,1.50288185,2445.7,2445.4,4.0872]
[1769909735259,1.50288185,2445.7,2445.3,4.0872]
[1769909735655,1.50288185,2445.7,2445.4,4.0872]
[1769909735959,1.50288185,2445.7,2445.3,4.0872]
[1769909736459,1.50288185,2445.7,2445.4,4.0872]
[1769909736660,1.50288185,2445.7,2445.3,4.0872]
[1769909737051,1.21262542,2445.3,2445.2,0.00334452]
[1769909737258,0.20471,2445.3,2444.9,1.50328553]
[1769909737459,0.20471,2445.3,2445.1,3.64145889]
[1769909737967,0.20471,2445.3,2445.1,3.43237131]
[1769909738159,0.20471,2445.3,2445.2,3.43237131]
[1769909740168,0.81544171,2445.6,2444.4,1.50328553]
[1769909740366,0.81544171,2445.6,2444.5,1.5066341]
[1769909740566,0.81544171,2445.6,2444.5,1.50328553]
[1769909740767,0.81544171,2445.6,2444.6,1.5066341]
[1769909740966,0.81544171,2445.6,2444.6,1.50328553]
[1769909741267,0.20472,2445.1,2444.7,1.5066341]
[1769909742070,0.00304823,2445.8,2444.7,1.5066341]
[1769909742264,0.20471,2445.3,2444.7,1.5066341]
[1769909742865,0.20471,2445.2,2444.7,1.5066341]
[1769909743964,0.20475,2444.8,2444.6,4.43e-06]
[1769909744171,0.20475,2444.7,2444.6,4.43e-06]
[1769909744367,1.08501104,2444.8,2443.8,5.89126123]
[1769909744571,1.08501104,2444.8,2443.6,4.83045969]
[1769909744572,0.2048,2444.2,2443.6,1.4963745]
[1769909744772,0.20483,2443.9,2443.6,1.4963745]
[1769909745073,0.20483,2443.9,2443.5,1.4963745]
[1769909745474,0.20778715,2443.9,2443.5,1.50082185]
[1769909747176,0.20778715,2443.9,2443.5,0.00444735]
[1769909747873,0.20778715,2443.9,2443.5,1.50082185]
[1769909748278,0.20778715,2443.9,2443.5,0.00444735]
[1769909749076,0.20778715,2443.9,2443.5,1.50082185]
[1769909749276,0.20478,2444.4,2443.5,1.50082185]
[1769909750179,0.20849297,2444.4,2443.5,1.50082185]
[1769909753582,1.55174835,2444.4,2443.5,1.50082185]
[1769909753780,1.54803538,2443.9,2443.2,5.89126123]
[1769909753981,1.54803538,2444.3,2443.2,1.4963745]
[1769909754582,0.20484,2443.7,2443.2,1.4963745]
[1769909754777,0.20484,2443.7,2443.2,1.49964797]
[1769909755383,1.54803538,2444.0,2443.2,0.00327347]
[1769909755588,0.20488,2443.2,2442.6,1.4963745]
[1769909756487,0.2049,2443.0,2442.6,0.00399919]
[1769909756679,0.20491,2442.9,2442.3,1.4963745]
[1769909756882,0.20491,2442.9,2442.1,6.024]
[1769909757083,0.20491,2442.9,2442.1,7.5203745]
[1769909757688,0.20491,2442.9,2442.1,7.52527186]
[1769909758387,1.75296538,2442.7,2442.1,0.00489736]
[1769909758588,1.75296538,2442.7,2441.9,3.685]
[1769909758786,0.34722396,2442.9,2441.9,3.685]
[1769909758787,1.75296538,2442.6,2441.9,3.685]
[1769909759491,1.75766973,2442.6,2441.9,3.6900115]
[1769909759890,0.20963435,2442.6,2442.0,1.4963745]
[1769909760087,0.00470435,2442.6,2442.0,1.4963745]
[1769909760287,0.20489,2443.1,2442.0,1.4963745]
[1769909761289,0.20939131,2443.1,2442.0,1.4963745]
[1769909761789,1.54803538,2443.7,2442.1,1.4963745]
[1769909761988,2.402,2444.5,2442.1,1.4963745]
[1769909761989,0.20489,2443.1,2442.1,1.4963745]
[1769909762983,0.20896287,2443.1,2442.1,1.4963745]
[1769909763395,0.2049,2443.0,2442.1,1.4963745]
[1769909764495,0.00407287,2443.1,2442.1,1.4963745]
[1769909766293,0.00407287,2443.1,2442.1,5.90941744]
[1769909766900,0.00407287,2443.1,2442.2,1.4963745]
[1769909768493,0.20896287,2443.1,2442.3,3.62335608]
[1769909771302,0.20896287,2443.1,2442.5,3.62335608]
[1769909772993,6.487,2444.4,2442.5,3.62335608]
[1769909772994,3.59304395,2444.1,2442.7,3.62335608]
[1769909773198,0.20484,2443.7,2442.7,3.62335608]
[1769909773397,3.59304395,2443.6,2442.8,4.43462227]
[1769909773604,0.20488,2443.2,2442.5,7.27440737]
[1769909773802,0.20488,2443.2,2442.6,4.43472354]
[1769909774001,0.20975729,2443.2,2442.5,3.62335608]
[1769909774206,0.20975729,2443.2,2442.6,4.42809908]
[1769909774405,0.20975729,2443.2,2442.5,7.27440737]
[1769909774606,0.20975729,2443.2,2442.6,4.43115167]
[1769909774802,0.20975729,2443.2,2442.5,7.27440737]
[1769909775006,0.20975729,2443.2,2442.6,8.02732324]
[1769909775306,0.20975729,2443.2,2442.6,3.62335608]
[1769909776607,0.20491,2442.9,2442.4,3.62335608]
[1769909776805,0.20491,2442.9,2442.5,4.40077332]
[1769909777107,0.20491,2442.9,2442.4,3.62335608]
[1769909779203,0.00487729,2443.2,2442.4,3.62335608]
[1769909780204,0.20491,2442.9,2442.4,3.62335608]
[1769909780404,0.18829263,2442.9,2442.6,3.62335608]
[1769909780609,0.00487729,2443.2,2442.6,3.62335608]
[1769909780805,0.00487729,2443.2,2442.4,6.06827195]
[1769909781202,3.59792124,2443.2,2442.4,6.06827195]
[1769909781406,3.59792124,2443.2,2442.5,4.35733296]
[1769909781707,3.59792124,2443.2,2442.4,6.06827195]
[1769909781907,3.59792124,2443.2,2442.5,4.35764973]
[1769909782208,0.20491,2442.9,2442.5,3.62335608]
[1769909782410,0.20491,2442.9,2442.5,6.06827195]
[1769909783307,0.20491,2442.9,2442.6,4.33897459]
[1769909783509,0.20491,2442.9,2442.5,6.06827195]
[1769909783710,0.20491,2442.9,2442.6,4.33897655]
[1769909784007,0.20491,2442.9,2442.7,3.62335608]
[1769909784210,0.00487729,2443.2,2442.7,3.62335608]
[1769909784410,0.00487729,2443.2,2442.7,6.06827195]
[1769909784609,0.00487729,2443.2,2442.8,3.62335608]
[1769909784810,0.20487,2443.4,2442.8,3.62335608]
[1769909785310,0.20487,2443.3,2442.8,3.62335608]
[1769909785706,0.20938849,2443.3,2442.8,3.62335608]
[1769909786011,0.20938849,2443.3,2442.8,6.06827195]
[1769909786311,0.20938849,2443.3,2442.9,3.62335608]
[1769909786611,0.20489,2443.1,2442.8,2.44491587]
[1769909786813,3.59756244,2443.3,2442.8,2.44491587]
[1769909787003,3.59756244,2443.3,2442.7,2.44491587]
[1769909787507,0.00451849,2443.3,2442.7,6.06827195]
[1769909788309,0.2049,2443.0,2442.7,6.06827195]
[1769909789014,0.2049,2443.0,2442.7,3.62335608]
[1769909789213,0.2049,2443.0,2442.7,6.06827195]
[1769909789912,3.59756244,2443.3,2442.7,0.62576587]
[1769909790113,0.20493,2442.6,2442.4,3.65105129]
[1769909790315,0.20493,2442.6,2442.5,4.32407001]
[1769909790513,3.59304395,2443.1,2442.5,4.32407001]
[1769909790812,0.20489,2443.1,2442.3,3.65105129]
[1769909791015,0.20489,2443.1,2442.4,4.32384904]
[1769909791214,0.20489,2443.1,2442.5,4.32384904]
[1769909791407,0.34227165,2443.7,2442.6,7.91139106]
[1769909791610,0.20486,2443.4,2442.7,4.26033977]
[1769909791810,0.20487,2443.3,2442.8,4.26033977]
[1769909792005,0.20487,2443.3,2442.6,3.65105129]
[1769909792209,0.20487,2443.3,2442.8,3.62335608]
[1769909792406,0.20930808,2443.3,2442.8,3.62335608]
[1769909794309,0.20488,2443.2,2442.8,3.62335608]
[1769909795512,0.20492,2442.8,2442.4,3.65105129]
[1769909795712,0.20492,2442.8,2442.5,7.88232395]
[1769909795913,3.59748203,2443.3,2442.6,3.62335608]
[1769909798219,0.20491,2442.8,2442.6,3.62335608]
[1769909798917,3.59748203,2443.3,2442.6,3.62335608]
[1769909799217,0.20491,2442.8,2442.6,3.62335608]
[1769909799420,3.59748203,2443.3,2442.6,3.62335608]
[1769909800118,0.33519635,2443.7,2442.6,3.62335608]
[1769909800314,0.20484,2443.7,2442.8,3.86257534]
[1769909800518,0.20486,2443.5,2442.9,8.05346489]
[1769909800722,0.20486,2443.5,2442.9,3.86257534]
[1769909801110,0.2100801,2443.5,2442.9,3.86257534]
[1769909803722,0.20486,2443.4,2442.9,3.86257534]
[1769909803919,0.2049,2443.0,2442.4,3.65105129]
[1769909804118,0.2049,2443.0,2442.2,3.65105129]
[1769909804421,0.2049,2443.0,2442.3,4.09618421]
[1769909804622,0.20491,2442.9,2442.1,10.76205129]
[1769909804824,0.20491,2442.9,2442.2,4.09622904]
[1769909805022,0.20492,2442.8,2442.3,4.09622904]
[1769909805223,0.20492,2442.8,2442.1,10.76205129]
[1769909805418,0.20492,2442.8,2442.2,4.05838447]
[1769909805619,0.20492,2442.8,2442.3,4.05838447]
[1769909805818,0.20492,2442.8,2442.1,10.76205129]
[1769909806019,0.20492,2442.8,2442.2,7.82673886]
[1769909806218,0.20492,2442.8,2442.3,7.82673886]
[1769909806417,0.20492,2442.8,2442.3,3.76835089]
[1769909808225,0.0052201,2443.5,2442.5,3.76835089]
[1769909809313,0.20489,2443.1,2442.5,3.76835089]
[1769909811923,0.0052201,2443.5,2442.5,3.76835089]
[1769909812424,0.20489,2443.1,2442.5,3.76835089]
[1769909814129,0.0052201,2443.5,2442.5,3.76835089]
[1769909814328,7.46527583,2444.1,2442.7,3.76835089]
[1769909814622,0.20485,2443.6,2442.7,3.76835089]
[1769909814817,7.46527583,2444.1,2442.9,3.76835089]
[1769909815324,7.46965088,2444.1,2442.9,3.76835089]
[1769909815525,7.81589667,2444.1,2442.9,3.76835089]
[1769909815725,4.12889667,2444.1,2442.9,3.76835089]
[1769909816229,0.20485,2443.6,2442.9,3.76835089]
[1769909817122,0.55543084,2444.1,2442.9,3.76835089]